Cogmind - Beta 16 @@@ ROGUE MODE // 2025.11.01 @ 19:24:47 Player: nevada Result: Self-destructed Performance ------------- Evolutions (1) 500 Regions Visited (2) 400 Robots Destroyed (0) 0 Value Destroyed (0) 0 Prototype IDs (2) 40 Alien Tech Used (0) 0 Bonus (200) 200 TOTAL SCORE: 1140 Bonus ------- Pacifist 200 Cogmind --------- Core Integrity 352/400 Matter 286/300 Energy 60/100 System Corruption 0% Temperature Cool (36) Movement Rolling (90) Location -9/Materials Parts ------- > --- POWER (2) -------- (None) > --- PROPULSION (2) --- Wheel Compact Wheel > --- UTILITY (3) ------ Small Storage Unit Hacking Suite > --- WEAPON (2) ------- Medium Laser > --- INVENTORY (8) ---- Medium Laser Datajack Peak State ------------ > --- POWER ------------ Ion Engine > --- PROPULSION ------- Wheel Compact Wheel > --- UTILITY ---------- Small Storage Unit Hacking Suite > --- WEAPON ----------- Medium Laser EMP Blaster > --- INVENTORY -------- Medium Laser Datajack [Rating: 10] Favorites ----------- Power Ion Engine Engine Ion Engine Propulsion Wheel Leg Aluminum Leg Wheel Wheel Utility Small Storage Unit Storage Small Storage Unit Hackware Hacking Suite Weapon Medium Laser Energy Gun Medium Laser Launcher EMP Blaster Build | -11 -10 -9 ------- Run | Yrd Mat Mat Slots Evolved 2 | . . 2 Power 1 | . . 1 Propulsion . | . . . Utility 1 | . . 1 Weapon . | . . . Parts Attached 6 | 4 1 1 Power 1 | 1 . . Engine 1 | 1 . . Core . | . . . Reactor . | . . . Propulsion 2 | 2 . . Treads . | . . . Leg . | . . . Wheel 2 | 2 . . Hover . | . . . Flight . | . . . Utility 1 | . 1 . Device . | . . . Storage . | . . . Processor . | . . . Hackware 1 | . 1 . Protection . | . . . Artifact . | . . . Weapon 2 | 1 . 1 Energy Gun 1 | 1 . . Energy Cannon . | . . . Ballistic Gun . | . . . Ballistic Cannon . | . . . Launcher 1 | . . 1 Special Weapon . | . . . Impact Weapon . | . . . Slashing Weapon . | . . . Piercing Weapon . | . . . Special Melee Weapon . | . . . Unidentified Prototypes . | . . . Parts Lost 2 | . . 2 Power 1 | . . 1 Propulsion . | . . . Utility . | . . . Weapon 1 | . . 1 Highest Loss Streak 2 | . . 2 To Critical Strikes . | . . . Average Backups 1 | 5 . 1 Power . | 1 . . Propulsion . | 3 . . Utility . | . . . Weapon . | 1 . . Tool/Special . | . . . Unused Backups 1 | . . 1 Power . | . . . Propulsion . | . . . Utility . | . . . Weapon . | . . . Tool/Special 1 | . . 1 Average Slot Usage (%) 91 | . 99 77 Engine 13 | . 14 11 Wheel 26 | . 28 22 Storage 13 | . 14 11 Hackware 12 | . 13 11 Energy Gun 25 | . 28 20 Peak Build Rating 10 | 6 9 10 Average Rating 8 | 6 8 9 On Entrance 7 | 6 6 9 Avg Prop Armor Cover (%) . | . . . Naked Turns . | . . . Heaviest Build 16 | 14 14 16 Greatest Support 26 | 26 26 26 Greatest Overweight (x) . | . . . Average Overweight (x) . | . . . Largest Inventory Capacity 8 | 8 8 8 Average Capacity 8 | 8 8 8 Most Carried 6 | 6 2 2 Average Carried 1 | 3 1 1 Final Capacity 8 | 8 8 8 Final Carried 2 | . 1 2 Class Distribution -------------------- 100% | Mutant Dominant Class ---------------- Mutant | -10/Materials Mutant | -9/Materials Resources | -11 -10 -9 ----------- Run | Yrd Mat Mat Matter Collected 240 | 240 . . Remotely . | . . . Salvage Created . | . . . Parts . | . . . Haulers Intercepted . | . . . Recyclers Shooed . | . . . Parts Field Recycled . | . . . Retrieved Matter . | . . . Parts Self-Destructed . | . . . Prevented . | . . . Parts Restored . | . . . Kills | -11 -10 -9 ------- Run | Yrd Mat Mat Combat Hostiles Destroyed . | . . . Classes Destroyed . | . . . Best Kill Streak . | . . . Combat Bots Only . | . . . Max Kills in Single Turn . | . . . Gunslinging . | . . . Exploded . | . . . Melee . | . . . Uniques/NPCs Destroyed . | . . . Combat | -11 -10 -9 -------- Run | Yrd Mat Mat Hostile Shots Fired 48 | . 31 17 Missed 16 | . 14 2 Hits 32 | . 17 15 Projectile 32 | . 17 15 Damage Taken 411 | . 222 189 Core 166 | . 118 48 Absorbed by Shields . | . . . Core Remaining (%) 76 | 100 52 . Volleys Fired 2 | . . 2 Largest 2 | . . 2 Hottest 83 | . . 83 Shots Fired 3 | . . 3 Gun 2 | . . 2 Cannon . | . . . Launcher 1 | . . 1 Special . | . . . Kinetic . | . . . Thermal 2 | . . 2 Explosive . | . . . Electromagnetic 1 | . . 1 Robot Hit Streak 2 | . . 2 Robot Miss Streak 1 | . . 1 Penetration Max . | . . . Secondary Targets . | . . . Shots Hit Robots 2 | . . 2 Core Hits . | . . . Critical Kills . | . . . Critical Parts Destroyed . | . . . Critical Strikes . | . . . Melee Attacks . | . . . Impact . | . . . Slashing . | . . . Piercing . | . . . Sneak Attacks . | . . . Combat Hostiles . | . . . Follow-up Attacks . | . . . Damage Inflicted 69 | . . 69 Guns 25 | . . 25 Cannons . | . . . Explosions 44 | . . 44 Melee . | . . . Ramming . | . . . Kinetic . | . . . Thermal 25 | . . 25 Explosive . | . . . Electromagnetic 44 | . . 44 Impact . | . . . Slashing . | . . . Piercing . | . . . Highest Corruption . | . . . Average Corruption . | . . . Corruption Purged . | . . . Corruption Blocked . | . . . Overload Shots . | . . . Overflow Damage . | . . . Projectiles . | . . . Explosions . | . . . Melee . | . . . Knockbacks . | . . . Impact . | . . . Kinetic . | . . . Secondary . | . . . Self-Inflicted Damage . | . . . Shots . | . . . Rammed . | . . . Targets Rammed . | . . . Kicked . | . . . Crushed . | . . . Highest Temperature 18 | . . 18 Average Temperature 15 | . . 15 Received Heat Transfer 237 | . 129 108 Siege Activations . | . . . Martial Activations . | . . . Shielding Activations . | . . . Robots Disrupted . | . . . Combat Hostiles . | . . . Robots Corrupted . | . . . Combat Hostiles . | . . . Parts Fried . | . . . Impact Corruptions . | . . . Robots Melted . | . . . Combat Hostiles . | . . . Parts Melted . | . . . Heat Transferred 74 | . . 74 Parts Sabotaged . | . . . Parts Stolen . | . . . Parts Stripped . | . . . Power Chain Reactions . | . . . Alert | -11 -10 -9 ------- Run | Yrd Mat Mat Maximum Alert Level . | . . . Low Security (%) 100 | 100 100 100 Level 1 . | . . . Level 2 . | . . . Level 3 . | . . . Level 4 . | . . . Level 5 . | . . . High Security . | . . . Max Security . | . . . Peak Influence 30 | . 30 15 Initial 8 | . . 8 Average 3 | . 3 4 Influence Increases 61 | . 46 15 Successful Hack 16 | . 16 . Partial Spotted 15 | . . 15 Lose Combat Pursuer 30 | . 30 . Influence Decreases 61 | . 26 35 Entered New Map 12 | . . 12 Time Decay 49 | . 26 23 Squads Dispatched 1 | . . 1 Investigation 1 | . . 1 Extermination . | . . . Reinforcement . | . . . Assault . | . . . Garrison . | . . . Intercept . | . . . Searches Triggered . | . . . Construction Impeded . | . . . Haulers Reinforced . | . . . Active Scanning Responses . | . . . Cargo Convoy Interrupts . | . . . Stealth | -11 -10 -9 --------- Run | Yrd Mat Mat Distress Signals 1 | . 1 . Communications Jammed . | . . . Distress Signals . | . . . Times Spotted 10 | . 7 3 Peak Tracking Total 5 | . 5 3 Tactical Retreats 1 | . 1 . Traps | -11 -10 -9 ------- Run | Yrd Mat Mat Traps Triggered . | . . . Indirectly . | . . . Trap Hack Attempts . | . . . Triggered . | . . . Disarmed . | . . . Reprogrammed . | . . . Reused . | . . . Traps Extracted . | . . . Installed . | . . . Triggered . | . . . Machines | -11 -10 -9 ---------- Run | Yrd Mat Mat Machines Disabled . | . . . Max in Single Turn . | . . . Machines Repaired . | . . . Machines Dismantled . | . . . Machines Sabotaged . | . . . Overloaded Fab Kills . | . . . Hacking | -11 -10 -9 --------- Run | Yrd Mat Mat Machines Accessed 5 | . 3 2 Terminals 4 | . 3 1 Fabricators . | . . . Repair Stations . | . . . Recycling Units 1 | . . 1 Scanalyzers . | . . . Garrison Access . | . . . Total Hacks 11 | . 6 5 Successful 7 | . 6 1 Failed 4 | . . 4 Catastrophic . | . . . Database Lockouts . | . . . Manual . | . . . Terminals 8 | . 6 2 Fabricators . | . . . Repair Stations . | . . . Recycling Units 3 | . . 3 Scanalyzers . | . . . Garrison Access . | . . . Terminal Hacks 6 | . 6 . Record 1 | . 1 . Robot Analysis 1 | . 1 . Prototype ID Bank 1 | . 1 . Alert Level 1 | . 1 . Dispatch Records 1 | . 1 . Transport Status 1 | . 1 . Fabricator Hacks . | . . . Repair Station Hacks . | . . . Recycling Unit Hacks 1 | . . 1 Report Inventory 1 | . . 1 Scanalyzer . | . . . Garrison Access Hacks . | . . . Unauthorized Hacks . | . . . Terminals . | . . . Fabricators . | . . . Repair Stations . | . . . Recycling Units . | . . . Scanalyzers . | . . . Garrison Access . | . . . Data Cores Recovered 1 | . 1 . Used 1 | . 1 . Hacking Detections 4 | . 2 2 Full Trace Events 1 | . . 1 Feedback Events . | . . . Feedback Blocked . | . . . Robot Schematics Acquired . | . . . Robots Built . | . . . Authchips . | . . . Time . | . . . Total Robot Build Rating . | . . . Part Schematics Acquired . | . . . Parts Built . | . . . Authchips . | . . . Time . | . . . Total Part Build Rating . | . . . Part Studies Acquired . | . . . Parts Repaired . | . . . Time . | . . . Parts Recycled . | . . . Recycled Matter . | . . . Retrieved Matter . | . . . Retrieved Components . | . . . Parts Scanalyzed . | . . . Part Schematics Acquired . | . . . Parts Damaged . | . . . Bothacking | -11 -10 -9 ------------ Run | Yrd Mat Mat Used RIF Installer . | . . . Robots Hacked . | . . . Non-combat . | . . . Combat . | . . . Robot Hacks Applied . | . . . Relay Couplers Released . | . . . Fabnet Peak Effective % . | . . . Robots Rewired . | . . . Allies Hacked . | . . . Hacks Repelled . | . . . Allies | -11 -10 -9 -------- Run | Yrd Mat Mat Total Allies . | . . . Largest Group . | . . . Highest-Rated Group . | . . . Highest-Rated Ally . | . . . Total Orders . | . . . Ally Attacks . | . . . Total Damage . | . . . Kills . | . . . Allies Corrupted . | . . . Allies Melted . | . . . Intel | -11 -10 -9 ------- Run | Yrd Mat Mat Active Infowar (turns) . | . . . Robot Analysis Total 1 | . 1 . Derelict Logs Recovered . | . . . Drone Launches . | . . . Drone Recoveries . | . . . Exploration | -11 -10 -9 ------------- Run | Yrd Mat Mat Turns Passed 285 | 18 180 87 Spaces Moved 292 | 9 196 87 Core . | . . . Treads . | . . . Legs 4 | 4 . . Wheels 288 | 5 196 87 Hover . | . . . Flight . | . . . Fastest Speed 90 | 90 90 90 Average Speed 90 | 103 90 90 Slowest Speed 120 | 120 90 90 Overloaded Moves . | . . . Propulsion Burnouts . | . . . Robots Hopped . | . . . Potential Cave-ins . | . . . Cave-ins Triggered . | . . . Exploration Rate (%) 19 | 3 43 12 Regions Visited 2 Branch Regions . Pre-discovered Areas . | . . . Known Exits Taken . | . . . Unknown Exits Taken 2 | 1 1 . Scrap Searched . | . . . Spaces Dug . | . . . Terrain Destroyed . | . . . Melee . | . . . Projectile . | . . . AOE . | . . . Terrain Rammed . | . . . Walls Destroyed . | . . . Machines Disabled . | . . . Actions | -11 -10 -9 --------- Run | Yrd Mat Mat Total 309 | 18 199 92 Wait 2 | . 1 1 Move 290 | 8 195 87 Hop . | . . . Pick Up 3 | . 2 1 Fast Attach . | . . . Attach 1 | . 1 . Detach . | . . . Swap 5 | 4 . 1 Drop 6 | 6 . . Fire 2 | . . 2 Melee . | . . . Ram . | . . . Kick . | . . . Crush . | . . . Escape Stasis . | . . . Rewire . | . . . Trap . | . . . Miscellaneous . | . . . Route ------- -11/Scrapyard -10/Materials (discovered 2 exits: *Mat / [*Min]) -9/Materials History --------- Turn | Location | Event 1 | -11/Scrapyard | Discovered new exit (range 3) 19 | -11/Scrapyard | Entered Materials 20 | -10/Materials | Met a group of wandering Federalists 113 | -10/Materials | Discovered new exit (range 6) 180 | -10/Materials | Discovered new exit (range 16) 199 | -10/Materials | Entered another Materials area 199 | -9/Materials | Evolved 2 slots: Power x1, Utility x1 286 | -9/Materials | Self-destructed Last Messages --------------- 00165_ K-01 Serf collects debris. 00180_ EXIT=FOUND PARAMETERS=POWER+1,UTILITY+1 LOCATION=UNKNOWN GOAL=ESCAPE 00208_ Connecting with Recycling Unit... 00208_ Current location identified: Materials >>Recycling(Report) Matter reserves: 0 Inventory: Plasma Cutter (56%) Imp. Ion Engine (37%) Corrupted Authchip [R/Combat] (100%) 00208_ ALERT: Suspicious activity at Recycling Unit M001. Dispatching Investigation squad. 00226_ Connecting with Terminal... 00270_ Acquired EMP Blaster. 00280_ Ion Engine destroyed. 00280_ Door malfunctions. 00284_ EMP Blaster destroyed. Map ----- +----------------------------------------------------+ | ??????????????????# #??#### | | ??????????????????# #?????? | | ??????????????????# #?????? | | ??????????????????# #?????? | | ??????????????????# #?????? | | ???????????######## #?????? | | ???????????# T # #?????? | | ???????????# # #?????? | | ???????????#""" + #?????? | | ???????????#""" # #?????? | | ????#+######""" # #?????? | | + # #?????? | | ????##########+#### #?????? | | ????????# # #?????? | | ????????# # #?????? | | ????????# + #?????? | | ????????# """ """ # #?????? | | ????????# """ """ # #?????? | | ????????# """ """ # #?????? | | ????????# # #?????? | | ????????# # #?????? | | ????????########### #?????? | | ??????????????????# ####### | | ??????????????????# # # | | ??????????????????# # # | | ??????????????????# # @ # | | ??????????????????# # # | | ??????????????????# # # | | ??????????????????# #g # | | ??????????????????# + !# | | ??????????????????# # # | | ??????????????????# # # | | ??????????????????# # # | | ??????????????????# # # | | ??????????????????# # gg # | | ??????????????????# ##/#### | | ??????????????????# ???? | | ??????????????????# ???? | | ??????????????????# ???? | | ??????????????????# ???? | | ??????????????????##+###+???? | | ???????????????????????? ???? | | ???????????????????????? #??? | | ?????????????????????????#??? | | ????????????????????????????? | | ????????????????????????????? | | ????????????????????????????? | | ????????????????????????????? | | ????????????????????????????? | | ????????????????????????????? | +----------------------------------------------------+ Best States ------------- Heat Dissipation 28 Energy Generation 10 Energy Capacity 250 Matter Stores 300 Matter Capacity 300 Sight Range 16 Terrain Scan Density 10 Evasion (%) 42 Offensive Hacking 10 Item Schematics ----------------- None Robot Schematics ------------------ None Fabricated ------------ Nothing Repaired ---------- Nothing Studied --------- None Alien Tech Used ----------------- None Achievements -------------- None Challenges ------------ None Game ------ Seed EncryptedWardroneInterpreter Manual? 0 Play Time 00:05:27 Cumulative 20.3 hours Start 2025.11.01 @ 19:19:56 End 2025.11.01 @ 19:24:47 Sessions 1 Manual Loads 0 Difficulty Rogue Special Mode None Game No. 74 Rogue 70 Adventurer 4 Explorer 0 Win Type - Total 0 Types 0/0/0/0/0/0/0/0/0/0 Lore% 14 Gallery% 20 Achievement% 13 Wizard Run 0 Options --------- Layout 0 ASCII 0 Keyboard 0 Movement Mouse Keybinds 1 Fullscreen 2 Font 18/SmallcapsGlow Map View 76x50 Zoom Use 0% Tactical HUD 1 Map Filters NONE Filters NONE Steam 1 RUN: 85f3fc68-ba65-4f18-98d9-d1b788c22ce5